bitfinex-derivatives/quotes_ETHF0:USTF0_20230830
["timestamp","ask_amount","ask_price","bid_price","bid_amount"]
[1693405409922,2.0636,1715.8,1715.7,7.55606842]
[1693405411328,2.56032076,1715.8,1715.7,6.12248666]
[1693405411922,2.56032076,1715.8,1715.7,7.55606842]
[1693405412323,2.0636,1715.8,1715.7,7.55606842]
[1693405415929,2.0636,1715.8,1715.7,4.64138176]
[1693405416127,2.0636,1715.8,1715.7,7.5560603]
[1693405419329,2.0636,1715.8,1715.7,7.55605466]
[1693405419730,2.0636,1715.8,1715.7,9.83540366]
[1693405421133,2.56032076,1715.8,1715.7,8.4018219]
[1693405421328,8.15839028,1715.8,1715.5,5.32779494]
[1693405421534,8.15839028,1715.8,1715.5,0.00874304]
[1693405421535,5.247,1715.6,1715.5,0.00874304]
[1693405421738,5.97384586,1715.6,1715.5,0.00874304]
[1693405422538,5.97384586,1715.6,1715.3,2.27989713]
[1693405422732,5.247,1715.4,1715.3,2.27989713]
[1693405422938,5.97384586,1715.4,1715.3,2.27989713]
[1693405423435,5.97384586,1715.4,1715.2,5.48769713]
[1693405423831,5.97384586,1715.4,1715.2,2.27989713]
[1693405424530,5.97384586,1715.4,1715.2,5.48769713]
[1693405424531,2.5259,1715.3,1715.2,5.48769713]
[1693405424835,2.5259,1715.3,1715.2,2.27989713]
[1693405425339,2.5259,1715.3,1715.2,6.92127889]
[1693405425740,2.5259,1715.3,1715.2,5.48769713]
[1693405427126,2.5259,1715.3,1715.2,3.2078]
[1693405428837,2.5259,1715.3,1715.2,4.64138176]
[1693405429241,5.0373,1715.3,1715.2,3.2078]
[1693405429441,5.0373,1715.3,1715.2,4.64138176]
[1693405430435,5.0373,1715.3,1715.2,3.2078]
[1693405433939,10.2843,1715.3,1715.1,2.7508118]
[1693405434137,5.97384586,1715.2,1714.9,2.27989713]
[1693405434344,5.247,1715.0,1714.9,2.27989713]
[1693405434543,5.97384586,1715.0,1714.8,5.96444632]
[1693405434741,7.7318,1714.9,1714.8,5.48769713]
[1693405437643,6.27380252,1714.9,1714.8,5.48769713]
[1693405439845,8.89770252,1714.9,1714.8,5.48769713]
[1693405440846,8.89770252,1714.9,1714.8,3.2078]
[1693405441347,8.89770252,1714.9,1714.8,5.48367858]
[1693405441645,8.89770252,1714.9,1714.8,6.12379815]
[1693405442344,8.89770252,1714.9,1714.8,8.39942158]
[1693405442546,8.89770252,1714.9,1714.8,6.12379815]
[1693405442845,8.89770252,1714.9,1714.8,8.3996559]
[1693405443142,8.89770252,1714.9,1714.8,6.12379815]
[1693405443543,8.89770252,1714.9,1714.8,8.40177526]
[1693405443942,8.89770252,1714.9,1714.8,6.12379815]
[1693405444545,8.89770252,1714.9,1714.8,10.59653468]
[1693405444744,8.89770252,1714.9,1714.8,9.16295292]
[1693405445141,8.89770252,1714.9,1714.8,10.59653468]
[1693405445336,8.89770252,1714.9,1714.8,9.16295292]
[1693405446048,8.89770252,1714.9,1714.8,10.59653468]
[1693405446244,8.89770252,1714.9,1714.8,9.16295292]
[1693405447045,8.89770252,1714.9,1714.8,5.95515292]
[1693405447248,9.37332749,1714.9,1714.8,5.95515292]
[1693405448650,9.37332749,1714.9,1714.8,3.03915477]
[1693405448850,9.37332749,1714.9,1714.8,5.95515292]
[1693405449144,8.49848762,1714.9,1714.8,7.38873468]
[1693405449552,8.49848762,1714.9,1714.8,5.95515292]
[1693405449749,11.70628762,1714.9,1714.8,5.19400765]
[1693405449950,11.70628762,1714.9,1714.7,2.75041755]
[1693405450247,5.97384586,1714.8,1714.7,2.2780095]
[1693405452950,5.97384586,1714.8,1714.5,2.27809358]
[1693405452951,27.04184586,1714.8,1714.5,2.27809358]
[1693405453245,8.4548,1714.6,1714.4,0.11216699]
[1693405453554,5.97384586,1714.5,1714.4,0.11216699]
[1693405453953,18.40284586,1714.5,1714.3,2.91698847]
[1693405454148,15.73454586,1714.5,1714.4,2.91698847]
[1693405454355,24.18934586,1714.5,1714.2,3.03915477]
[1693405454558,5.247,1714.3,1714.2,3.03915477]
[1693405454850,3.20505034,1714.3,1714.2,4.47273653]
[1693405455154,3.9318962,1714.3,1714.2,5.95614324]
[1693405456151,9.1788962,1714.3,1714.2,5.95614324]
[1693405456455,9.1788962,1714.3,1714.2,3.03915477]
[1693405456649,12.3866962,1714.3,1714.2,3.03915477]
[1693405456953,12.3866962,1714.3,1714.2,2.91698847]
[1693405457148,12.3866962,1714.3,1714.1,5.95614324]
[1693405457350,5.247,1714.2,1714.1,5.95614324]
[1693405458544,5.247,1714.2,1714.1,2.91698847]
[1693405458754,0.72684586,1714.1,1713.6,7.76653215]
[1693405458951,5.247,1713.8,1713.7,2.91760023]
[1693405459147,3.11781514,1713.8,1713.6,2.91760023]
[1693405459348,3.11781514,1713.8,1713.7,2.91760023]
[1693405459546,8.36481514,1713.8,1713.6,2.91760023]
[1693405459856,3.11781514,1713.8,1713.7,2.91760023]
[1693405460051,11.57261514,1713.8,1713.5,2.91794509]
[1693405460352,5.247,1713.3,1713.1,7.76653215]
[1693405460557,5.247,1713.3,1713.1,3.2078]
[1693405460558,5.74372076,1713.2,1713.1,3.2078]
[1693405460753,2.24183248,1713.2,1713.1,2.26993648]
[1693405460953,2.24183248,1713.2,1712.8,17.76653215]
[1693405461153,5.247,1713.0,1712.8,17.76653215]
[1693405461350,5.247,1712.9,1712.8,13.2078]
[1693405461757,5.4771251,1712.9,1712.8,10.0]
[1693405463857,5.4771251,1712.9,1712.8,11.43358176]
[1693405464058,5.4771251,1712.9,1712.8,10.0]
[1693405465055,5.247,1712.9,1712.8,11.43358176]
[1693405465250,5.247,1712.9,1712.8,14.64138176]
[1693405465457,5.247,1712.9,1712.8,10.0]
[1693405466252,5.4771251,1712.8,1712.6,0.47097564]
[1693405466459,5.247,1712.7,1712.3,5.6727]
[1693405466658,5.247,1712.5,1712.4,2.26993648]
[1693405466954,5.247,1712.5,1712.4,3.70351824]
[1693405467154,5.247,1712.5,1712.3,3.68695937]
[1693405467351,8.178,1712.5,1712.3,5.12054113]
[1693405467657,8.178,1712.5,1712.3,5.10814458]
[1693405468057,8.178,1712.7,1712.4,2.26993648]
[1693405468357,8.4081251,1712.7,1712.4,2.26993648]
[1693405468755,8.4081251,1712.7,1712.5,3.2078]
[1693405469458,8.4081251,1712.7,1712.5,4.64138176]
[1693405469856,8.178,1712.7,1712.5,4.64138176]
[1693405471758,8.178,1712.7,1712.6,0.0186609]
[1693405472453,8.178,1712.7,1712.6,3.72217914]
[1693405473164,7.1382605,1713.0,1712.6,3.72217914]
[1693405473165,8.178,1712.9,1712.6,3.72217914]
[1693405473553,8.178,1712.9,1712.7,3.2078]
[1693405474655,0.2301251,1712.8,1712.7,3.2078]
[1693405475561,8.178,1712.9,1712.7,1.43358176]
[1693405475762,8.4081251,1712.9,1712.6,2.26993648]
[1693405476467,8.178,1712.9,1712.7,4.64138176]
[1693405476767,8.64004427,1713.0,1712.8,2.26993648]
[1693405477275,8.64004427,1713.0,1712.7,4.64138176]
[1693405477567,8.178,1712.9,1712.7,3.2078]
[1693405477768,6.71845673,1712.9,1712.7,5.47773648]
[1693405478367,8.178,1712.8,1712.7,3.2078]
[1693405478676,8.4081251,1712.8,1712.5,3.2078]
[1693405478969,8.178,1712.6,1712.5,3.2078]
[1693405479169,8.4081251,1712.6,1712.5,3.2078]
[1693405480060,8.4081251,1712.6,1712.2,3.10020259]
[1693405480260,8.178,1712.4,1712.2,2.6361]
[1693405480472,8.4081251,1712.4,1712.1,3.2078]
[1693405480665,8.4081251,1712.4,1712.2,0.01858891]
[1693405481071,8.178,1712.3,1712.2,0.01858891]
[1693405481669,8.178,1712.3,1712.1,3.2078]
[1693405481865,0.2301251,1712.2,1712.1,3.2078]
[1693405482270,0.2301251,1712.2,1712.1,4.64138176]
[1693405482670,8.4081251,1712.2,1711.9,3.2078]
[1693405482869,10.0,1712.1,1711.6,1.50985807]
[1693405483063,8.178,1711.7,1711.5,4.71765807]
[1693405483371,0.2301251,1712.0,1711.5,3.66412972]
[1693405483372,8.178,1711.6,1711.5,3.66412972]
[1693405483567,8.178,1711.7,1711.5,3.66412972]
[1693405483772,8.178,1711.9,1711.6,3.70351824]
[1693405483968,0.2301251,1711.8,1711.7,3.2078]
[1693405484169,8.178,1711.9,1711.8,1.86417267]
[1693405484375,8.178,1711.9,1711.8,0.43059091]
[1693405484773,6.13363436,1711.9,1711.8,4.14350705]
[1693405485072,8.178,1712.3,1711.8,12.32150705]
[1693405485271,8.178,1712.3,1712.2,3.2078]
[1693405485477,8.178,1712.3,1712.2,4.64138176]
[1693405485678,8.178,1712.3,1712.0,3.2078]
[1693405485976,10.2549,1712.3,1712.0,3.2078]
[1693405486277,8.178,1712.1,1711.8,3.63839091]
[1693405486470,8.178,1712.1,1711.9,1.43358176]
[1693405486976,8.178,1712.1,1711.8,5.90832739]
[1693405487476,8.178,1711.9,1711.8,2.70052739]
[1693405487676,8.178,1711.9,1711.8,0.43059091]
[1693405488275,8.178,1711.9,1711.8,5.07197267]
[1693405488871,8.178,1711.9,1711.8,3.63839091]
[1693405489070,8.178,1711.9,1711.8,5.07197267]
[1693405489472,8.178,1712.1,1711.8,5.07197267]
[1693405489668,10.0,1712.8,1712.0,11.3858]
[1693405489873,10.5885,1712.7,1712.5,3.2078]
[1693405490075,10.0044,1712.7,1712.5,3.2078]
[1693405490273,10.0044,1712.7,1712.5,5.47773648]
[1693405490468,10.0044,1712.7,1712.6,1.43358176]
[1693405490778,9.4203,1712.7,1712.5,3.2078]
[1693405491472,2.4105,1712.7,1712.5,12.81938176]
[1693405491970,8.178,1712.9,1712.6,2.26993648]
[1693405492169,8.178,1712.9,1712.7,4.64138176]
[1693405492371,8.178,1712.8,1712.5,3.2078]
[1693405492674,8.178,1712.7,1712.6,1.43358176]
[1693405494073,13.71533998,1713.1,1712.6,9.61158176]
[1693405494272,13.71533998,1713.1,1712.9,3.2078]
[1693405494577,13.71533998,1713.1,1712.9,4.64138176]
[1693405495379,8.178,1713.2,1712.9,6.91131824]
[1693405496074,8.178,1713.1,1712.9,6.91131824]
[1693405497077,8.178,1713.1,1712.9,3.70351824]
[1693405497573,8.178,1713.1,1712.9,1.43358176]
[1693405498180,3.2078,1713.2,1712.9,15.08931824]
[1693405499077,10.8078,1713.3,1712.9,15.08931824]
[1693405500387,11.27617607,1713.3,1712.9,15.08931824]
[1693405500584,8.178,1713.2,1712.9,6.91131824]
[1693405501283,14.48397607,1713.3,1712.9,15.08931824]
[1693405501484,11.27617607,1713.3,1712.9,15.08931824]
[1693405501878,3.09817607,1713.3,1713.1,3.2078]
[1693405502078,8.178,1713.2,1713.1,3.2078]
[1693405502278,8.178,1713.2,1713.1,4.64138176]
[1693405502479,3.09817607,1713.3,1713.1,6.91131824]
[1693405502683,2.98663189,1713.6,1713.2,8.178]
[1693405502981,8.178,1714.0,1713.5,8.178]
[1693405503178,8.178,1714.2,1713.8,11.3858]
[1693405503576,8.178,1714.2,1713.9,2.26993648]
[1693405503779,8.63952049,1714.2,1714.0,1.43358176]
[1693405503986,0.46152049,1714.2,1714.0,1.43358176]
[1693405504185,3.2078,1714.3,1714.1,2.26993648]
[1693405504486,1.51216502,1714.5,1714.1,10.44793648]
[1693405504487,9.10656502,1714.5,1714.1,10.44793648]
[1693405504684,8.178,1714.3,1714.1,2.26993648]
[1693405505486,11.8558196,1714.6,1714.2,12.81938176]
[1693405505787,8.0646196,1714.6,1714.3,2.26993648]
[1693405505987,8.0646196,1714.6,1714.4,1.43358176]
[1693405506391,8.0646196,1714.6,1714.3,2.26993648]
[1693405506688,8.0646196,1714.6,1714.4,1.43358176]
[1693405507580,2.3996,1714.7,1714.5,10.44793648]
[1693405507785,2.3996,1714.7,1714.6,1.43358176]
[1693405508179,2.3996,1714.7,1714.6,4.64138176]
[1693405508381,8.178,1714.9,1714.6,4.64138176]
[1693405508588,10.6433,1715.1,1714.7,10.44793648]
[1693405508783,10.6433,1715.1,1714.8,3.2078]
[1693405509081,2.4653,1715.1,1714.9,11.88151824]
[1693405509286,1.8821,1715.1,1714.9,11.88151824]
[1693405510384,20.0601,1715.1,1714.8,3.2078]
[1693405510891,20.51947591,1715.1,1714.8,3.2078]
[1693405511289,8.178,1714.9,1714.8,3.2078]
[1693405511488,8.178,1714.9,1714.4,11.3858]
[1693405511687,8.178,1714.6,1714.4,3.2078]
[1693405511882,8.178,1714.6,1714.4,4.64138176]
[1693405512089,8.178,1715.0,1714.5,15.90116436]
[1693405512382,2.34147591,1715.1,1714.8,8.178]
[1693405512588,2.34147591,1715.1,1714.9,1.43358176]
[1693405512780,3.2078,1715.0,1714.8,8.178]
[1693405512978,11.3858,1715.0,1714.6,11.3858]
[1693405513188,3.2078,1714.8,1714.5,8.178]
[1693405513588,8.178,1714.9,1714.6,1.43358176]
[1693405515191,2.34147591,1715.1,1714.8,8.178]
[1693405515386,2.34147591,1715.1,1714.9,1.43358176]
[1693405515690,2.34147591,1715.1,1714.9,3.70351824]
[1693405515985,2.34147591,1715.1,1714.8,8.178]
[1693405518594,2.34147591,1715.1,1714.9,1.43358176]
[1693405519591,8.178,1715.0,1714.6,11.3858]
[1693405520090,11.3858,1715.0,1714.6,11.3858]
[1693405520390,21.3858,1715.0,1714.6,8.178]
[1693405520591,8.178,1714.9,1714.5,8.178]
[1693405525990,11.3858,1714.6,1714.1,8.178]
[1693405526198,8.178,1714.3,1714.0,3.2078]
[1693405526697,8.178,1714.3,1714.1,1.43358176]
[1693405527795,8.178,1714.3,1713.9,8.178]
[1693405527993,8.178,1714.1,1713.8,5.7444]
[1693405528294,8.178,1714.1,1713.7,8.178]
[1693405528598,8.178,1714.0,1713.6,3.2078]
[1693405529888,21.3858,1714.0,1713.6,3.2078]
[1693405530091,21.3858,1714.0,1713.5,8.178]
[1693405531893,8.178,1713.9,1713.4,11.3858]
[1693405532299,8.178,1713.9,1713.6,3.2078]
[1693405533708,8.18675274,1713.9,1713.6,3.2078]
[1693405534007,8.18675274,1713.9,1713.6,3.21369736]
[1693405534805,8.18675274,1713.9,1713.7,1.43358176]
[1693405535714,10.30249786,1714.4,1713.8,11.3858]
[1693405535715,3.2078,1714.4,1713.8,11.3858]
[1693405536004,3.2078,1714.4,1714.1,8.178]
[1693405536306,3.2078,1714.4,1714.2,3.70351824]
[1693405536703,3.2078,1714.4,1714.1,8.178]
[1693405537200,13.61415709,1714.5,1714.1,8.178]
[1693405538308,13.62290701,1714.5,1714.1,8.178]
[1693405539601,11.17500701,1714.5,1714.1,8.178]
[1693405539807,11.17500701,1714.5,1714.0,3.2078]
[1693405539808,11.3858,1714.4,1714.0,3.2078]
[1693405540204,8.178,1714.2,1713.8,14.0144]
[1693405540411,8.178,1714.1,1713.8,3.2078]
[1693405541326,8.178,1714.1,1713.7,8.178]
[1693405542122,8.178,1714.0,1713.6,11.39169736]
[1693405543131,8.178,1714.0,1713.6,13.66163384]
[1693405543424,8.178,1713.8,1713.6,3.21369736]
[1693405543628,8.178,1713.7,1713.6,0.00589736]
[1693405543825,10.0,1713.6,1713.1,1.51580847]
[1693405544132,10.0,1713.6,1713.0,5.4815127]
[1693405544133,8.178,1713.3,1713.0,4.72360847]
[1693405544325,8.178,1713.3,1713.1,1.43358176]
[1693405544625,8.178,1713.4,1713.1,1.43358176]
[1693405545223,8.178,1713.3,1713.1,1.43358176]
[1693405545424,8.178,1713.3,1713.0,6.99354495]
[1693405545627,8.178,1713.4,1713.1,1.43358176]
[1693405546933,8.178,1713.4,1713.0,12.90160847]
[1693405547137,8.178,1713.3,1713.0,3.2078]
[1693405548038,8.178,1713.1,1712.7,15.17532117]
[1693405548338,10.0,1713.3,1712.7,15.17532117]
[1693405548339,18.178,1713.3,1712.8,11.96374495]
[1693405548534,18.178,1713.3,1712.9,3.2078]
[1693405548733,18.178,1713.3,1712.8,11.96374495]
[1693405548937,18.178,1713.3,1712.9,3.2078]
[1693405550036,8.178,1713.3,1712.9,3.2078]
[1693405550232,8.178,1713.3,1713.0,2.26993648]
[1693405550442,8.178,1713.3,1712.9,3.2078]
[1693405551341,3.2078,1713.2,1712.8,8.178]
[1693405551545,3.2078,1713.2,1712.5,7.9838127]
[1693405551546,8.178,1712.9,1712.5,4.72360847]
[1693405551742,3.2078,1713.0,1712.5,4.72360847]
[1693405551743,3.2078,1713.0,1712.6,2.26993648]
[1693405551940,2.5855,1713.2,1712.9,8.178]
[1693405552240,8.178,1713.3,1713.0,6.91131824]
[1693405554040,6.26947378,1713.6,1713.2,11.3858]
[1693405554241,3.06167378,1713.6,1713.3,2.26993648]
[1693405554542,11.3858,1713.4,1712.8,11.3858]
[1693405554843,8.178,1713.2,1712.8,11.3858]
[1693405555037,8.178,1713.2,1712.9,2.26993648]
[1693405555237,8.178,1713.2,1713.0,4.64138176]
[1693405555440,3.2078,1713.4,1713.1,10.44793648]
[1693405555647,3.2078,1713.4,1713.2,1.43358176]
[1693405555938,11.3858,1713.4,1713.1,2.26993648]
[1693405557651,11.3858,1713.4,1713.0,11.3858]
[1693405557948,10.0,1713.3,1713.0,11.3858]
[1693405558250,8.178,1713.2,1713.0,3.2078]
[1693405559244,8.178,1713.2,1712.8,11.3858]
[1693405559651,8.178,1713.1,1712.8,3.2078]
[1693405559851,8.178,1713.1,1712.8,5.47773648]
[1693405560048,8.178,1713.1,1712.9,1.43358176]
[1693405560254,8.178,1713.2,1713.0,3.2078]
[1693405560456,0.00875605,1713.3,1713.1,11.88151824]
[1693405560650,0.00875605,1713.3,1713.2,3.2078]
[1693405561353,7.60305605,1713.6,1713.3,2.26993648]
[1693405561551,7.60305605,1713.6,1713.4,1.43358176]
[1693405561552,7.01935605,1713.6,1713.4,1.43358176]
[1693405562059,7.01935605,1713.6,1713.4,4.64138176]
[1693405563059,13.7232589,1713.7,1713.4,4.64138176]
[1693405563257,8.178,1713.5,1713.4,3.2078]
[1693405564759,8.178,1713.5,1713.1,3.2078]
[1693405564956,8.178,1713.2,1712.7,25.1078]
[1693405565254,8.178,1713.1,1712.7,11.3858]
[1693405565459,8.178,1713.1,1712.9,3.2078]
[1693405565760,8.178,1713.1,1712.9,4.64138176]
[1693405566458,3.2078,1713.5,1712.9,6.91131824]
[1693405566459,8.178,1713.2,1712.9,6.91131824]
[1693405566653,11.3858,1713.5,1713.1,11.3858]
[1693405566858,11.3858,1713.5,1713.1,13.65573648]
[1693405567056,8.178,1713.3,1713.1,5.47773648]
[1693405567761,8.178,1713.3,1713.1,6.91131824]
[1693405567966,3.2078,1713.5,1713.1,6.91131824]
[1693405568162,8.178,1713.3,1713.1,6.91131824]
[1693405569861,0.00875555,1713.4,1713.2,7.51988186]
[1693405570061,8.178,1713.3,1713.2,7.51988186]
[1693405570265,8.178,1713.3,1712.7,1.51998138]
[1693405570460,8.178,1712.8,1712.6,4.72778138]
[1693405570661,8.178,1712.8,1712.7,1.43358176]
[1693405570866,8.178,1712.8,1712.6,3.2078]
[1693405571161,8.178,1712.8,1712.5,3.78991786]
[1693405571361,8.178,1712.8,1712.5,2.26993648]
[1693405571563,8.178,1712.8,1712.6,4.64138176]
[1693405571961,8.178,1712.9,1712.6,4.64138176]
[1693405573367,8.178,1712.7,1712.4,4.72778138]
[1693405573571,8.178,1712.7,1712.5,1.43358176]
[1693405574369,2.5923,1712.8,1712.4,3.2078]
[1693405574370,8.178,1712.6,1712.4,3.2078]
[1693405574576,8.178,1712.6,1712.4,1.43358176]
[1693405574775,8.178,1712.6,1712.4,4.64138176]
[1693405577078,8.178,1713.0,1712.5,17.98354042]
[1693405577273,8.178,1713.0,1712.6,4.72778138]
[1693405577578,8.178,1713.2,1712.8,11.3858]
[1693405577971,8.178,1713.2,1712.9,2.26993648]
[1693405578777,8.178,1713.2,1713.0,1.43358176]
[1693405578974,13.2833,1713.3,1713.1,2.26993648]
[1693405579274,13.2833,1713.3,1713.2,1.43358176]
[1693405579471,0.00875555,1713.4,1713.2,4.64138176]
[1693405579673,0.00875555,1713.4,1713.3,2.26993648]
[1693405582772,8.18675555,1713.4,1713.0,3.2078]
[1693405585583,3.2078,1713.3,1712.9,8.178]
[1693405586382,3.2078,1713.3,1712.9,10.44793648]
[1693405586582,3.2078,1713.3,1712.9,11.96953369]
[1693405587279,0.00875555,1713.4,1713.2,8.178]
[1693405587576,0.00875555,1713.4,1713.3,3.70351824]
[1693405588479,8.18675555,1713.4,1713.1,1.52605447]
[1693405588784,8.18675555,1713.4,1713.0,15.20093618]
[1693405589277,8.18675555,1713.4,1713.1,1.52605447]
[1693405589581,10.47393457,1713.4,1713.2,1.43358176]
[1693405589774,8.18675555,1713.4,1713.2,1.43358176]
[1693405590885,10.47393457,1713.4,1713.2,1.43358176]
[1693405591581,10.47393457,1713.4,1713.1,3.79599095]
[1693405593183,2.29593457,1713.4,1713.1,11.97399095]
[1693405593988,10.47393457,1713.4,1713.1,3.79599095]
[1693405595373,10.47393457,1713.4,1713.2,1.43358176]
[1693405595575,2.29593457,1713.4,1713.2,1.43358176]
[1693405597686,2.29593457,1713.4,1713.1,10.44793648]
[1693405597984,2.28717902,1713.3,1713.0,4.73385447]
[1693405598189,10.46517902,1713.2,1712.9,1.52605447]
[1693405598484,10.46517902,1713.2,1712.8,12.91185447]
[1693405598682,2.28717902,1713.1,1712.8,1.52605447]
[1693405598886,13.67297902,1713.1,1712.8,1.52605447]
[1693405599086,13.67297902,1713.1,1712.7,11.99313618]
[1693405599584,13.67297902,1713.1,1712.7,9.70405447]
[1693405600282,13.67297902,1713.1,1712.7,11.99313618]
[1693405600584,2.28717902,1713.1,1712.9,8.178]
[1693405600775,2.28717902,1713.1,1713.0,1.43358176]
[1693405601680,3.04957203,1713.1,1712.9,8.178]
[1693405601985,2.2900196,1713.0,1712.9,8.178]
[1693405605388,2.2900196,1713.0,1712.9,9.61158176]
[1693405605783,3.04957203,1713.0,1712.6,12.92061206]
[1693405606092,2.29002082,1712.9,1712.6,12.92061206]
[1693405606290,2.29002082,1712.9,1712.7,1.43358176]
[1693405607989,2.29002082,1713.0,1712.8,13.65573648]
[1693405608287,2.29002082,1713.0,1712.9,9.61158176]
[1693405608593,2.76079867,1713.2,1712.9,9.61158176]
[1693405608792,2.76079867,1713.2,1713.0,5.47773648]
[1693405608993,2.76079867,1713.2,1713.1,1.43358176]
[1693405610696,3.52034988,1713.2,1713.1,1.43358176]
[1693405610994,3.52034988,1713.2,1712.9,8.178]
[1693405611195,2.2893667,1713.1,1712.9,8.178]
[1693405611395,2.2893667,1713.1,1712.8,12.91185447]
[1693405611695,2.2893667,1713.1,1712.8,15.18179095]
[1693405612094,2.2893667,1713.1,1712.9,1.43358176]
[1693405614495,2.2893667,1713.0,1712.8,13.65573648]
[1693405614695,2.2893667,1713.0,1712.9,1.43358176]
[1693405615699,2.2893667,1713.1,1712.9,1.43358176]
[1693405615899,2.2893667,1713.1,1713.0,2.26993648]
[1693405616094,3.04957203,1713.1,1712.9,9.61158176]
[1693405616290,2.28893214,1713.0,1712.9,9.61158176]
[1693405617390,2.28893214,1713.1,1712.9,9.61158176]
[1693405617593,2.28893214,1713.1,1712.9,11.88151824]
[1693405617793,2.28893214,1713.0,1712.9,11.88151824]
[1693405619596,2.28893214,1713.0,1712.9,8.178]
[1693405619998,2.28893214,1713.0,1712.9,9.61158176]
[1693405621700,2.28893214,1713.0,1712.9,8.178]
[1693405622404,3.04957203,1713.1,1712.9,8.178]
[1693405622609,11.98996504,1713.1,1712.7,12.15805447]
[1693405622903,2.29291801,1712.8,1712.7,9.70405447]
[1693405623107,2.29291801,1712.8,1712.7,11.13763623]
[1693405624907,2.29291801,1712.8,1712.7,9.61158176]
[1693405625508,2.29291801,1712.8,1712.7,8.178]
[1693405626811,2.29291801,1712.8,1712.6,7.03169377]
[1693405627007,2.29169972,1712.7,1712.6,0.00875759]
[1693405627408,8.31422402,1712.7,1712.6,0.00875759]
[1693405627606,10.79392402,1712.7,1712.6,0.00875759]
[1693405629418,10.78818178,1712.7,1712.6,0.00875759]
[1693405630410,7.7367,1712.7,1712.6,0.00875759]
[1693405630811,10.02383471,1712.7,1712.6,0.00875759]
[1693405634211,11.54669696,1712.7,1712.6,0.00875759]
[1693405634413,11.54655662,1712.7,1712.6,0.00875759]
[1693405634813,10.02383471,1712.7,1712.6,0.00875759]
[1693405635111,11.54627559,1712.7,1712.6,0.00875759]
[1693405635308,3.2078,1712.8,1712.6,9.90713935]
[1693405635309,1.52244088,1712.8,1712.6,9.90713935]
[1693405635515,2.28713471,1712.9,1712.7,5.257]
[1693405635516,3.80957559,1712.9,1712.7,5.257]
[1693405635708,1.52244088,1712.8,1712.7,5.257]
[1693405635912,1.52244088,1712.8,1712.7,1.43358176]
[1693405636112,1.52244088,1712.8,1712.6,7.53569407]
[1693405636813,1.52244088,1712.8,1712.6,8.96927583]
[1693405639218,1.52244088,1712.8,1712.6,12.17707583]
[1693405641826,1.52244088,1712.8,1712.6,8.96927583]
[1693405642029,1.52244088,1712.8,1712.6,3.71227583]
[1693405642527,1.52244088,1712.8,1712.6,2.27869407]
[1693405642826,1.52244088,1712.8,1712.6,0.00875759]
[1693405643025,3.98874088,1712.8,1712.6,3.21655759]
[1693405643223,3.98874088,1712.8,1712.6,6.92007583]
[1693405643920,6.27587559,1712.8,1712.6,6.92007583]
[1693405644527,1.52244088,1712.7,1712.6,0.00875759]
[1693405645223,1.52244088,1712.7,1712.3,1.52905058]
[1693405645224,3.05148178,1712.7,1712.3,1.52905058]
[1693405645527,15.257,1712.4,1711.9,5.257]
[1693405645726,3.2078,1712.3,1712.1,1.5290167]
[1693405645919,6.7807937,1712.2,1712.0,4.44975039]
[1693405646233,5.257,1712.1,1711.9,1.5290167]
[1693405646423,5.257,1712.1,1711.9,4.44996881]
[1693405646725,5.257,1712.1,1711.9,1.5290167]
[1693405646925,6.7807937,1712.1,1711.8,4.7368167]
[1693405647224,8.4648,1711.9,1711.7,1.5290167]
[1693405647524,8.4648,1711.9,1711.6,1.5290167]
[1693405647525,5.257,1711.8,1711.6,1.5290167]
[1693405648035,5.257,1711.8,1711.5,1.5290167]
[1693405648324,5.257,1711.8,1711.5,4.45059504]
[1693405648927,5.257,1711.8,1711.6,1.43358176]
[1693405649231,7.8176,1711.9,1711.6,11.42739846]
[1693405649626,7.8176,1711.9,1711.6,9.89838176]
[1693405649823,7.8176,1711.9,1711.7,2.26993648]
[1693405650129,7.8596,1712.0,1711.8,4.64138176]
[1693405650834,7.8596,1712.0,1711.9,2.26993648]
[1693405651028,2.6026,1712.0,1711.9,7.52693648]
[1693405651527,7.8596,1712.0,1711.8,3.2078]
[1693405651732,7.8596,1712.0,1711.6,12.28734175]
[1693405651934,7.8596,1712.0,1711.6,14.55727823]
[1693405652332,10.7816,1712.0,1711.6,17.47927823]
[1693405653330,10.7816,1712.0,1711.6,15.18575318]
[1693405653827,2.6026,1712.0,1711.8,3.2078]
[1693405654025,3.01208342,1712.2,1711.9,11.88251824]
[1693405654336,2.5424,1712.2,1711.9,11.88251824]
[1693405654531,8.179,1712.0,1711.7,1.5290167]
[1693405654831,8.179,1712.0,1711.5,12.9158167]
[1693405655237,2.5484,1711.9,1711.5,12.9158167]
[1693405655431,2.5484,1711.9,1711.7,3.2078]
[1693405655731,2.5484,1711.9,1711.8,1.43358176]
[1693405656033,2.439,1712.0,1711.8,3.70351824]
[1693405657231,2.439,1712.0,1711.8,2.26993648]
[1693405657628,2.439,1712.0,1711.8,3.70351824]
[1693405658028,2.439,1712.0,1711.7,12.91020324]
[1693405658231,2.439,1712.0,1711.8,1.43358176]
[1693405658738,2.439,1712.0,1711.8,3.70351824]
[1693405659233,8.64921151,1712.1,1711.9,3.2078]
[1693405659434,8.179,1712.4,1712.0,11.88251824]
[1693405659640,2.6229,1712.5,1712.3,11.3868]
[1693405659828,2.6229,1712.8,1712.4,3.70351824]
[1693405660141,2.6229,1712.8,1712.5,11.3868]
[1693405660437,3.08522588,1712.8,1712.6,3.70351824]
[1693405660627,2.50112588,1712.8,1712.6,3.70351824]
[1693405661336,2.0388,1712.8,1712.7,11.3868]
[1693405661834,2.04755836,1712.8,1712.7,3.2078]
[1693405662236,2.04755836,1712.8,1712.6,11.88251824]
[1693405662633,3.70351824,1712.7,1712.5,11.3868]
[1693405662831,11.88251824,1712.7,1712.3,11.3868]
[1693405663636,8.179,1712.6,1712.3,3.2078]
[1693405663841,1.43358176,1712.5,1712.3,3.2078]
[1693405664241,3.70351824,1712.5,1712.3,3.2078]
[1693405664443,8.179,1712.4,1712.1,7.12374262]
[1693405664738,3.70351824,1712.3,1712.1,3.2078]
[1693405665534,3.70351824,1712.3,1712.1,6.91131824]